{"text_format":"1","workbook":"xlsx","n_sheets":3,"sheets":["Registro","Info","BD"],"not_rendered":{"charts":1,"images":17,"macros":1,"external_links":0,"defined_names":8,"comments":0,"pivot_tables":0},"unopened":[],"bounds":{"document_bytes":16777216,"sheet_cells":100000,"rows_first":2000,"rows_last":500,"rows_between":2000,"halvings":0,"cell_chars":16384,"cell_head_chars":4096},"cells_cut":0,"cells_raw":0,"read":"whole","date_system":"1900"}

{"sheet":"Registro","index":0,"n_rows":36,"n_cols":5,"rows_kept":36,"cut":false,"hidden":false,"merged":[[4,4,4,6],[19,4,19,9],[6,4,6,6],[1,2,1,11],[18,4,18,7]]}
[]
[null,null,"Registro de pacientes"]
[]
[null,null,null,"Datos generales","Antropometría"]
["Menu",4]
["IDConsulta",{"$f":"IFERROR(MAX(IDCOnsulta)+1,1)","v":35},null,"Fecha (dd/mm/aaaa):"]
["IDPaciente",{"$f":"IFERROR(MAX(ID_Paciente)+1,1)","v":5},null,"Paciente"]
["FilaPaciente",{"$f":"IFERROR(MATCH(E7,Paciente,0)+3,\"\")","v":""}]
["IDPacieSelec",3,null,"Fecha nacimiento"]
["Contara",{"$f":"COUNTA(E6,E7)","v":0},null,"Género:"]
["CONCATE",{"$f":"E7&E6","v":""},null,"Ciudad:"]
["FilaConca",{"$f":"IFERROR(MATCH(B11,Concatenado,0)+3,\"\")","v":""},null,"Estado:"]
["FilaPcUnico",{"$f":"IFERROR(MATCH(E7,Paciente,0),\"\")","v":""},null,"Calle:"]
[null,null,null,"# interior:"]
[null,null,null,"Colonia:"]
[null,null,null,"C.P:"]
[null,null,null,"Estado civil:"]
[null,null,null,"Teléfono:"]
[null,null,null,"Correo electro:"]
[null,null,null,"Motivo consulta:"]
[null,null,"C:\\Users\\felip\\OneDrive\\Escritorio\\caras\\2.png"]
[]
[]
[]
[null,null,null,"Peso, kg"]
["#COLUMNA",21,null,"Pli. Tricipital"]
[null,null,null,"Pli. Bicipital"]
[null,null,null,"Pli. Subescapular"]
[null,null,null,"Pli. Suprailiaco"]
[null,null,null,"Talla, cm"]
[null,null,null,"Circ. Cintura"]
[null,null,null,"Circ. Cadera"]
[null,null,null,"Circ. Brazo relajado"]
[null,null,null,"Circ. Brazo contrido"]
[null,null,null,"IMC",{"$f":"IFERROR(ROUND(E25/(E30/100)^2,2),\"\")","v":""}]
[null,null,null,"ICC",{"$f":"IFERROR(ROUND(E31/E32,2),\"\")","v":""}]

{"sheet":"Info","index":1,"n_rows":26,"n_cols":3,"rows_kept":26,"cut":false,"hidden":false,"merged":[[3,2,4,2],[23,2,24,2],[19,2,20,2],[15,2,16,2],[11,2,12,2],[7,2,8,2]]}
[]
[]
[null,null,"Enlaces"]
[null,null,"Grupo de facebook"]
[]
[null,null,"https://www.facebook.com/groups/4967367233310480/"]
[]
[null,null,"Canal youtube"]
[]
[null,null,"https://www.youtube.com/@nutex"]
[]
[null,null,"Sitio web"]
[]
[null,null,"https://nutricionexcel.com/"]
[]
[null,null,"Página de facebook"]
[]
[null,null,"https://www.facebook.com/nutricionexcel/"]
[]
[null,null,"Tutorial YouTube"]
[]
[null,null,"https://youtu.be/uVO6g1qopEA"]
[]
[null,null,"Patreon"]
[]
[null,null,"https://www.patreon.com/nutricionexcel"]

{"sheet":"BD","index":2,"n_rows":36,"n_cols":40,"rows_kept":36,"cut":false,"hidden":false,"merged":[[0,34,1,35],[0,37,1,39],[0,2,1,19],[0,20,1,31]]}
[null,null,"BASE DE DATOS DE PACIENTES REGISTRADOS",null,null,null,null,null,null,null,null,null,null,null,null,null,null,null,null,null,"ANTROPOMETRIA",null,null,null,null,null,null,null,null,null,null,null,null,{"$f":"IFERROR(MATCH(Registro!E7,Pacientes_unicos,0)+3,\"\")","v":""},"PACIENTE UNICOS",null,null,"MEDIDAS ANTROPOMETRICAS"]
[]
[null,null,"IDCOnsulta","ID Paciente","Fecha:","Paciente","Fecha nacimiento","Género:","Ciudad:","Estado:","Calle:","# interior:","Colonia:","C.P:","Estado civil:","Teléfono:","Correo electro:","Motivo consulta:","Foto","Concatenado","Peso, kg","Pli. Tricipital","Pli. Bicipital","Pli. Subescapular","Pli. Suprailiaco","Talla, cm","Circ. Cintura","Circ. Cadera","Circ. Brazo relajado","Circ. Brazo contrido","IMC","ICC",null,null,"Pacientes unicos","Fechas de consulta",null,"#","Fecha","Medición"]
[null,null,2,2,"2022-05-10","FES","1996-05-10","Masculino","xxxxxx","xxxxxx","xxxxxxx","xxx","xxxx",546548,{"$f":"IF(F4=\"Ejemplo\",\"Casada\",\"Soltero\")","v":"Soltero"},"xxxxxxxxxxxxx","xxxx@gmail.com","Mejorar salud","C:\\Users\\felip\\OneDrive\\Escritorio\\caras\\3.png","FES44691",65,5,5.5,6,6.5,165,90,92,24,25,23.88,0.98,null,null,"FAS","2022-06-10",null,1,"2022-06-10",72]
[null,null,3,2,"2022-06-10","FES","1996-05-10","Masculino","xxxxxx","xxxxxx","xxxxxxx","xxx","xxxx",546548,"Soltero","xxxxxxxxxxxxx","xxxx@gmail.com","Mejorar salud","C:\\Users\\felip\\OneDrive\\Escritorio\\caras\\2.png","FES44722",76,7,17,13,13,177,85,86,24,29,24.26,0.99,null,null,"FES","2022-11-10",null,2,"2022-10-10",79]
[null,null,4,3,"2022-06-10","Ejemplo","1996-05-10","Femenino","xxxxxx","xxxxxx","xxxxxxx","xxx","xxxx",515158,"Casada","xxxxxxxxxxxxx","xxxx@gmail.com","Mejorar salud","C:\\Users\\felip\\OneDrive\\Escritorio\\caras\\1.png","Ejemplo44722",72,12,12,16,7,164,95,80,22,32,26.77,1.19,null,null,"Ejemplo","2023-04-10",null,3,"2023-03-10",81]
[null,null,5,4,"2022-06-10","Ejemplo1","1996-05-10","Masculino","xxxxxx","xxxxxx","xxxxxxx","xxx","xxxx",54688,"Soltero","xxxxxxxxxxxxx","xxxx@gmail.com","Mejorar salud","C:\\Users\\felip\\OneDrive\\Escritorio\\caras\\4.png","Ejemplo144722",83,13,4,6,15,168,93,85,26,31,29.41,1.0900000000000001,null,null,"Ejemplo1","2023-09-10",null,4,"2023-08-10",74]
[null,null,6,1,"2022-07-10","FAS","2000-06-10","Masculino","xxxxxx","xxxxxx","xxxxxxx","xxx","xxxx",55456,"Soltero","xxxxxxxxxxxxx","xxxx@gmail.com","Bajar de peso","C:\\Users\\felip\\OneDrive\\Escritorio\\caras\\2.png",{"$f":"F8&E8","v":"FAS44752"},85,7,4,14,10,166,97,95,26,30,30.85,1.02,null,null,"Felipe","2024-02-10",null,5,"2024-01-10",70]
[null,null,7,2,"2022-08-10","FES","1996-05-10","Masculino","xxxxxx","xxxxxx","xxxxxxx","xxx","xxxx",546548,"Soltero","xxxxxxxxxxxxx","xxxx@gmail.com","Mejorar salud","C:\\Users\\felip\\OneDrive\\Escritorio\\caras\\3.png",{"$f":"F9&E9","v":"FES44783"},80,19,13,16,8,163,96,96,26,29,30.11,1,null,null,null,"2024-07-10",null,6,"2024-06-10",71]
[null,null,8,2,"2022-09-10","FES","1996-05-10","Masculino","xxxxxx","xxxxxx","xxxxxxx","xxx","xxxx",546548,"Soltero","xxxxxxxxxxxxx","xxxx@gmail.com","Mejorar salud","C:\\Users\\felip\\OneDrive\\Escritorio\\caras\\3.png","FES44814",82,4,11,15,11,169,96,83,27,32,28.71,1.1599999999999999]
[null,null,9,3,"2022-10-10","Ejemplo","1996-05-10","Femenino","xxxxxx","xxxxxx","xxxxxxx","xxx","xxxx",515158,"Casada","xxxxxxxxxxxxx","xxxx@gmail.com","Mejorar salud","C:\\Users\\felip\\OneDrive\\Escritorio\\caras\\1.png","Ejemplo44844",79,10,17,11,10,182,85,87,23,29,23.85,0.98]
[null,null,10,4,"2022-11-10","Ejemplo1","1996-05-10","Masculino","xxxxxx","xxxxxx","xxxxxxx","xxx","xxxx",54688,"Soltero","xxxxxxxxxxxxx","xxxx@gmail.com","Mejorar salud","C:\\Users\\felip\\OneDrive\\Escritorio\\caras\\1.png","Ejemplo144875",77,12,4,7,9,181,91,81,23,30,23.5,1.1200000000000001]
[null,null,11,1,"2022-12-10","FAS","2000-06-10","Masculino","xxxxxx","xxxxxx","xxxxxxx","xxx","xxxx",55456,"Soltero","xxxxxxxxxxxxx","xxxx@gmail.com","Bajar de peso","C:\\Users\\felip\\OneDrive\\Escritorio\\caras\\2.png","FAS44905",77,7,13,15,14,165,87,95,26,32,28.28,0.92]
[null,null,12,2,"2023-01-10","FES","1996-05-10","Masculino","xxxxxx","xxxxxx","xxxxxxx","xxx","xxxx",546548,"Soltero","xxxxxxxxxxxxx","xxxx@gmail.com","Mejorar salud","C:\\Users\\felip\\OneDrive\\Escritorio\\caras\\3.png","FES44936",85,8,8,10,19,179,93,86,29,30,26.53,1.08]
[null,null,13,2,"2023-02-10","FES","1996-05-10","Masculino","xxxxxx","xxxxxx","xxxxxxx","xxx","xxxx",546548,"Soltero","xxxxxxxxxxxxx","xxxx@gmail.com","Mejorar salud","C:\\Users\\felip\\OneDrive\\Escritorio\\caras\\3.png","FES44967",74,10,19,14,12,166,96,83,29,31,26.85,1.1599999999999999]
[null,null,14,3,"2023-03-10","Ejemplo","1996-05-10","Femenino","xxxxxx","xxxxxx","xxxxxxx","xxx","xxxx",515158,"Casada","xxxxxxxxxxxxx","xxxx@gmail.com","Mejorar salud","C:\\Users\\felip\\OneDrive\\Escritorio\\caras\\1.png","Ejemplo44995",81,7,5,7,16,178,88,85,28,29,25.56,1.04]
[null,null,15,4,"2023-04-10","Ejemplo1","1996-05-10","Masculino","xxxxxx","xxxxxx","xxxxxxx","xxx","xxxx",54688,"Soltero","xxxxxxxxxxxxx","xxxx@gmail.com","Mejorar salud","C:\\Users\\felip\\OneDrive\\Escritorio\\caras\\1.png","Ejemplo145026",80,14,9,8,10,170,91,89,28,31,27.68,1.02]
[null,null,16,1,"2023-05-10","FAS","2000-06-10","Masculino","xxxxxx","xxxxxx","xxxxxxx","xxx","xxxx",55456,"Soltero","xxxxxxxxxxxxx","xxxx@gmail.com","Bajar de peso","C:\\Users\\felip\\OneDrive\\Escritorio\\caras\\2.png","FAS45056",70,11,12,17,6,177,88,101,24,30,22.34,0.87]
[null,null,17,2,"2023-06-10","FES","1996-05-10","Masculino","xxxxxx","xxxxxx","xxxxxxx","xxx","xxxx",546548,"Soltero","xxxxxxxxxxxxx","xxxx@gmail.com","Mejorar salud","C:\\Users\\felip\\OneDrive\\Escritorio\\caras\\3.png","FES45087",71,11,5,19,11,182,88,102,21,30,21.43,0.86]
[null,null,18,2,"2023-07-10","FES","1996-05-10","Masculino","xxxxxx","xxxxxx","xxxxxxx","xxx","xxxx",546548,"Soltero","xxxxxxxxxxxxx","xxxx@gmail.com","Mejorar salud","C:\\Users\\felip\\OneDrive\\Escritorio\\caras\\3.png","FES45117",73,12,11,16,5,173,94,89,23,29,24.39,1.06]
[null,null,19,3,"2023-08-10","Ejemplo","1996-05-10","Femenino","xxxxxx","xxxxxx","xxxxxxx","xxx","xxxx",515158,"Casada","xxxxxxxxxxxxx","xxxx@gmail.com","Mejorar salud","C:\\Users\\felip\\OneDrive\\Escritorio\\caras\\1.png","Ejemplo45148",74,12,6,10,4,183,85,91,20,32,22.1,0.93]
[null,null,20,4,"2023-09-10","Ejemplo1","1996-05-10","Masculino","xxxxxx","xxxxxx","xxxxxxx","xxx","xxxx",54688,"Soltero","xxxxxxxxxxxxx","xxxx@gmail.com","Mejorar salud","C:\\Users\\felip\\OneDrive\\Escritorio\\caras\\1.png","Ejemplo145179",75,9,19,7,15,168,87,84,24,31,26.57,1.04]
[null,null,21,1,"2023-10-10","FAS","2000-06-10","Masculino","xxxxxx","xxxxxx","xxxxxxx","xxx","xxxx",55456,"Soltero","xxxxxxxxxxxxx","xxxx@gmail.com","Bajar de peso","C:\\Users\\felip\\OneDrive\\Escritorio\\caras\\2.png","FAS45209",70,12,18,6,14,177,98,89,22,29,22.34,1.1000000000000001]
[null,null,22,2,"2023-11-10","FES","1996-05-10","Masculino","xxxxxx","xxxxxx","xxxxxxx","xxx","xxxx",546548,"Soltero","xxxxxxxxxxxxx","xxxx@gmail.com","Mejorar salud","C:\\Users\\felip\\OneDrive\\Escritorio\\caras\\3.png","FES45240",76,15,9,6,8,161,99,96,26,30,29.32,1.03]
[null,null,23,2,"2023-12-10","FES","1996-05-10","Masculino","xxxxxx","xxxxxx","xxxxxxx","xxx","xxxx",546548,"Soltero","xxxxxxxxxxxxx","xxxx@gmail.com","Mejorar salud","C:\\Users\\felip\\OneDrive\\Escritorio\\caras\\3.png","FES45270",71,12,18,18,20,171,96,93,23,32,24.28,1.03]
[null,null,24,3,"2024-01-10","Ejemplo","1996-05-10","Femenino","xxxxxx","xxxxxx","xxxxxxx","xxx","xxxx",515158,"Casada","xxxxxxxxxxxxx","xxxx@gmail.com","Mejorar salud","C:\\Users\\felip\\OneDrive\\Escritorio\\caras\\1.png","Ejemplo45301",70,16,10,8,16,182,85,99,26,30,21.13,0.86]
[null,null,25,4,"2024-02-10","Ejemplo1","1996-05-10","Masculino","xxxxxx","xxxxxx","xxxxxxx","xxx","xxxx",54688,"Soltero","xxxxxxxxxxxxx","xxxx@gmail.com","Mejorar salud","C:\\Users\\felip\\OneDrive\\Escritorio\\caras\\1.png","Ejemplo145332",70,7,5,7,20,165,87,86,21,32,25.71,1.01]
[null,null,26,1,"2024-03-10","FAS","2000-06-10","Masculino","xxxxxx","xxxxxx","xxxxxxx","xxx","xxxx",55456,"Soltero","xxxxxxxxxxxxx","xxxx@gmail.com","Bajar de peso","C:\\Users\\felip\\OneDrive\\Escritorio\\caras\\2.png","FAS45361",72,8,10,20,15,170,99,88,27,30,24.91,1.1299999999999999]
[null,null,27,2,"2024-04-10","FES","1996-05-10","Masculino","xxxxxx","xxxxxx","xxxxxxx","xxx","xxxx",546548,"Soltero","xxxxxxxxxxxxx","xxxx@gmail.com","Mejorar salud","C:\\Users\\felip\\OneDrive\\Escritorio\\caras\\3.png","FES45392",83,13,19,18,9,185,97,85,24,30,24.25,1.1399999999999999]
[null,null,28,2,"2024-05-10","FES","1996-05-10","Masculino","xxxxxx","xxxxxx","xxxxxxx","xxx","xxxx",546548,"Soltero","xxxxxxxxxxxxx","xxxx@gmail.com","Mejorar salud","C:\\Users\\felip\\OneDrive\\Escritorio\\caras\\3.png","FES45422",70,10,7,11,13,163,98,90,29,32,26.35,1.0900000000000001]
[null,null,29,3,"2024-06-10","Ejemplo","1996-05-10","Femenino","xxxxxx","xxxxxx","xxxxxxx","xxx","xxxx",515158,"Casada","xxxxxxxxxxxxx","xxxx@gmail.com","Mejorar salud","C:\\Users\\felip\\OneDrive\\Escritorio\\caras\\1.png","Ejemplo45453",71,20,19,5,4,180,97,83,27,31,21.91,1.17]
[null,null,30,4,"2024-07-10","Ejemplo1","1996-05-10","Masculino","xxxxxx","xxxxxx","xxxxxxx","xxx","xxxx",54688,"Soltero","xxxxxxxxxxxxx","xxxx@gmail.com","Mejorar salud","C:\\Users\\felip\\OneDrive\\Escritorio\\caras\\1.png","Ejemplo145483",80,10,10,4,8,164,85,91,23,30,29.74,0.93]
[null,null,31,4,"2024-08-10","Felipe","1990-06-10","Masculino","xxxxxx","xxxxxx","xxxxxxx","xxx","xxxx",11515,"Soltero","xxxxxxxxxxxxx","xxxx@gmail.com","Bajar de peso","C:\\Users\\felip\\OneDrive\\Escritorio\\caras\\1.png","Felipe45514",84,6,18,10,4,162,99,97,28,31,32.01,1.02]
[null,null,32,4,"2024-09-10","Felipe","1990-06-10","Masculino","xxxxxx","xxxxxx","xxxxxxx","xxx","xxxx",11515,"Soltero","xxxxxxxxxxxxx","xxxx@gmail.com","Mejorar salud","C:\\Users\\felip\\OneDrive\\Escritorio\\caras\\1.png","Felipe45545",80,10,8,14,15,172,90,80,23,31,27.04,1.1299999999999999]
[null,null,33,4,"2024-10-10","Felipe","1990-06-10","Masculino","xxxxxx","xxxxxx","xxxxxxx","xxx","xxxx",11515,"Soltero","xxxxxxxxxxxxx","xxxx@gmail.com","Mejorar salud","C:\\Users\\felip\\OneDrive\\Escritorio\\caras\\1.png","Felipe45575",75,8,8,4,13,167,97,86,21,32,26.89,1.1299999999999999]
[null,null,34,4,"2024-11-10","Felipe","1990-06-10","Masculino","xxxxxx","xxxxxx","xxxxxxx","xxx","xxxx",11515,"Soltero","xxxxxxxxxxxxx","xxxx@gmail.com","Mejorar salud","C:\\Users\\felip\\OneDrive\\Escritorio\\caras\\1.png","Felipe45606",82,16,18,14,13,180,87,97,24,30,25.31,0.9]